bitfinex-derivatives/quotes_ETHF0:USTF0_20241022
["timestamp","ask_amount","ask_price","bid_price","bid_amount"]
[1729637085764,1.8765,2642.7,2642.6,1.36]
[1729637088968,1.8765,2642.7,2642.5,1.70073]
[1729637089165,5.09500867,2642.6,2642.4,0.6774]
[1729637089363,0.96274,2642.5,2642.3,1.36]
[1729637089564,0.622,2642.3,2642.2,4.60157]
[1729637089767,0.622,2642.3,2642.2,5.6208]
[1729637089973,1.9003,2642.3,2642.2,5.6208]
[1729637091772,1.9003,2642.3,2642.2,4.5678]
[1729637092972,0.622,2642.3,2642.2,4.90857]
[1729637094570,0.622,2642.3,2642.2,1.70077]
[1729637094771,0.622,2642.3,2642.2,4.90857]
[1729637099973,0.622,2642.3,2642.2,1.70077]
[1729637101874,4.47300867,2642.5,2642.4,0.34075]
[1729637102173,5.09500867,2642.5,2642.4,1.70075]
[1729637103776,0.622,2642.5,2642.4,1.70075]
[1729637104276,4.47300867,2642.6,2642.4,6.26855]
[1729637104481,0.6737,2643.4,2642.7,2.72]
[1729637104678,0.6737,2643.4,2643.3,1.36]
[1729637104974,2.0337,2643.4,2643.1,4.5678]
[1729637105169,2.0337,2643.4,2642.9,1.38167]
[1729637105170,0.622,2643.2,2642.9,1.38167]
[1729637105371,0.622,2643.0,2642.9,1.38167]
[1729637105567,0.622,2643.0,2642.8,1.041]
[1729637105766,2.6498,2643.1,2642.9,1.36]
[1729637105971,0.622,2643.0,2642.9,1.36]
[1729637106370,2.32267,2643.0,2642.7,1.36]
[1729637106671,1.982,2642.8,2642.7,1.36]
[1729637106877,0.622,2642.8,2642.7,1.36]
[1729637107673,1.982,2642.8,2642.7,1.36]
[1729637108076,0.622,2642.8,2642.7,1.36]
[1729637109576,1.982,2642.8,2642.5,0.34073]
[1729637109776,1.2369,2642.7,2642.6,1.36]
[1729637109983,2.5969,2642.7,2642.6,1.36]
[1729637110176,8.17300881,2642.7,2642.6,1.36]
[1729637110380,8.17300881,2642.7,2642.5,1.70073]
[1729637110679,1.982,2642.6,2642.4,3.54854]
[1729637110981,0.622,2642.5,2642.4,4.90854]
[1729637111380,0.622,2642.5,2642.4,1.70074]
[1729637111883,2.1675128,2642.5,2642.0,3.2078]
[1729637112071,1.982,2642.1,2641.9,0.34081]
[1729637112272,2.6334,2642.0,2641.9,1.70081]
[1729637112472,3.2554,2642.0,2641.9,1.70081]
[1729637114379,1.8954,2642.0,2641.9,1.70081]
[1729637117385,3.2078,2642.6,2641.9,6.5048]
[1729637117592,0.622,2642.2,2642.1,0.34079]
[1729637118685,0.622,2642.2,2642.1,1.36]
[1729637118988,0.622,2642.2,2642.1,1.70079]
[1729637122586,1.241,2642.2,2642.1,1.70079]
[1729637123289,0.622,2642.2,2642.1,1.70079]
[1729637123600,0.622,2642.2,2642.1,2.98629]
[1729637125198,1.3337,2642.5,2642.1,6.4303]
[1729637125389,1.3337,2642.5,2642.4,1.70075]
[1729637125895,1.9557,2642.5,2642.4,1.36]
[1729637127097,1.9557,2642.5,2642.4,1.70075]
[1729637127298,1.9557,2642.5,2642.4,1.36]
[1729637127491,1.9557,2642.5,2642.4,1.70075]
[1729637127896,1.9557,2642.5,2642.4,1.36]
[1729637128094,1.9557,2642.5,2642.4,1.70075]
[1729637128993,1.9557,2642.5,2642.4,1.36]
[1729637129193,1.9557,2642.5,2642.4,1.70075]
[1729637141009,0.622,2642.5,2642.4,1.70075]
[1729637143706,0.622,2642.5,2642.2,4.507]
[1729637143707,1.982,2642.5,2642.2,3.8805]
[1729637143906,1.36,2642.5,2642.4,0.34075]
[1729637144103,1.982,2642.5,2642.4,0.34075]
[1729637157117,5.1898,2642.5,2642.1,3.2078]
[1729637157312,5.1898,2642.5,2642.1,0.34078]
[1729637157313,1.982,2642.2,2642.1,0.34078]
[1729637157512,1.982,2642.2,2642.1,1.70078]
[1729637157513,0.622,2642.2,2642.1,1.70078]
[1729637158518,1.982,2642.2,2642.1,1.70078]
[1729637158717,1.982,2642.2,2641.9,0.9815]
[1729637158911,4.95410881,2642.5,2641.7,0.34083]
[1729637158912,1.982,2642.0,2641.7,0.34083]
[1729637159118,1.36,2641.8,2641.6,1.70084]
[1729637159413,0.622,2641.7,2641.6,0.34085]
[1729637159615,0.622,2641.7,2641.5,3.2078]
[1729637159819,0.622,2641.6,2641.5,3.2078]
[1729637160018,0.622,2641.6,2641.5,3.54866]
[1729637160821,0.622,2641.6,2641.5,4.90866]
[1729637163619,1.2742,2641.6,2641.5,4.90866]
[1729637171131,1.2742,2641.6,2641.5,1.70086]
[1729637178022,3.2078,2642.2,2641.5,5.1456]
[1729637178222,1.6683,2642.1,2642.0,0.3408]
[1729637178630,1.7401,2642.1,2642.0,0.3408]
[1729637179626,1.7401,2642.1,2642.0,1.7008]
[1729637180025,1.36,2642.5,2642.0,8.3526]
[1729637180234,1.9369,2642.5,2642.3,1.70075]
[1729637180628,0.622,2642.4,2642.3,1.70075]
[1729637182735,1.982,2642.4,2642.3,1.70075]
[1729637185125,1.982,2642.4,2642.3,0.34075]
[1729637188029,1.982,2642.4,2642.3,1.70075]
[1729637189742,1.982,2642.4,2642.3,1.36]
[1729637190038,1.982,2642.4,2642.3,1.70076]
[1729637193136,0.622,2642.4,2642.3,1.36]
[1729637193341,0.622,2642.4,2642.3,1.70076]
[1729637193543,1.982,2642.4,2642.3,1.70076]
[1729637198539,1.982,2642.4,2642.2,1.36]
[1729637198743,0.5769,2642.5,2642.3,0.34076]
[1729637198946,1.36,2642.4,2642.3,0.34076]
[1729637199143,1.982,2642.4,2642.3,0.34076]
[1729637200643,1.982,2642.4,2642.2,1.70077]
[1729637200840,0.622,2642.3,2642.2,1.70077]
[1729637201049,1.982,2642.3,2642.0,1.36]
[1729637201248,1.111,2642.2,2642.1,1.70079]
[1729637201544,1.733,2642.2,2642.1,1.70079]
[1729637202444,1.733,2642.2,2642.1,1.36]
[1729637203454,1.733,2642.2,2642.1,1.70079]
[1729637205049,1.733,2642.2,2642.1,1.36]
[1729637205543,3.093,2642.2,2642.0,0.34079]
[1729637205750,1.982,2642.1,2642.0,0.3408]
[1729637206044,1.1556,2642.1,2642.0,1.7008]
[1729637214054,0.5336,2642.1,2642.0,1.7008]
[1729637214356,1.1556,2642.1,2642.0,1.7008]
[1729637217454,8.16190881,2642.5,2642.0,1.36]
[1729637217762,8.16190881,2642.5,2641.9,1.944]
[1729637217763,0.622,2642.2,2642.1,0.85629]
[1729637218957,0.622,2642.2,2642.1,2.21629]
[1729637219350,0.622,2642.2,2642.1,1.70079]
[1729637219757,1.1262,2642.2,2642.1,1.70079]
[1729637221155,0.622,2642.2,2642.1,1.70079]
[1729637222054,4.95410881,2642.6,2642.1,5.1448]
[1729637222261,4.95410881,2642.6,2641.9,5.1518]
[1729637222262,5.50740881,2642.6,2642.5,1.36]
[1729637222464,6.12940881,2642.6,2642.5,1.36]
[1729637222662,6.12940881,2642.6,2642.5,1.70073]
[1729637225956,7.48940881,2642.6,2642.5,1.70073]
[1729637226357,2.5353,2642.6,2642.5,1.70073]
[1729637227164,4.95410881,2642.8,2642.5,9.7118]
[1729637227366,4.95410881,2643.0,2642.9,0.34068]
[1729637227661,0.622,2643.0,2642.9,1.70068]
[1729637227866,3.2078,2643.2,2643.1,0.34066]
[1729637228053,3.2078,2643.2,2643.1,1.70066]
[1729637228054,3.8298,2643.2,2643.1,1.70066]
[1729637228453,0.622,2643.2,2643.1,1.70066]
[1729637229359,1.982,2643.2,2643.0,1.70067]
[1729637229562,1.982,2643.1,2643.0,1.70067]
[1729637230559,0.622,2643.1,2643.0,1.70067]
[1729637235161,0.3407,2642.8,2642.4,0.34074]
[1729637235369,0.622,2642.5,2642.4,0.34074]
[1729637235554,0.622,2642.5,2642.4,1.70074]
[1729637235761,0.622,2642.5,2642.4,1.36]
[1729637236265,0.622,2642.5,2642.4,1.70075]
[1729637242567,0.622,2642.5,2642.4,2.27745]
[1729637242967,0.5761,2642.7,2642.6,0.34072]
[1729637243169,1.1981,2642.7,2642.6,1.70072]
[1729637246376,1.1981,2642.7,2642.6,6.26852]
[1729637246573,1.1981,2642.7,2642.6,1.70072]
[1729637248073,0.5761,2642.7,2642.6,1.70072]
[1729637253281,1.1981,2642.7,2642.6,1.70072]
[1729637255775,1.094,2643.0,2642.9,0.34068]
[1729637255980,1.094,2643.0,2642.9,1.70068]
[1729637256180,1.716,2643.0,2642.9,1.70068]
[1729637256374,1.716,2643.0,2642.9,1.36]
[1729637256777,1.716,2643.0,2642.9,1.70068]
[1729637271589,6.67010881,2643.0,2642.9,1.70068]
[1729637272785,1.716,2643.0,2642.9,1.70068]
[1729637279493,6.68337942,2643.0,2642.9,1.70068]
[1729637280691,1.716,2643.0,2642.9,1.70068]
[1729637281092,6.68383197,2643.0,2642.9,1.70068]
[1729637281395,0.5739,2643.1,2643.0,0.34067]
[1729637281396,4.96783197,2643.1,2643.0,0.34067]
[1729637281589,4.96783197,2643.1,2643.0,5.48387]
[1729637281790,3.2078,2643.2,2643.1,0.34066]
[1729637281988,3.2078,2643.2,2643.1,1.70066]
[1729637281989,3.8298,2643.2,2643.1,1.70066]
[1729637282193,4.96783197,2643.4,2643.1,5.1432]
[1729637282493,3.2078,2643.5,2643.3,1.36]
[1729637282796,3.2078,2643.5,2643.0,0.85165]
[1729637282797,3.2078,2643.5,2643.4,2.23792]
[1729637283001,3.8298,2643.5,2643.4,2.23792]
[1729637283195,3.2078,2643.5,2643.4,6.02112]
[1729637283491,5.53263197,2643.7,2643.4,6.02112]
[1729637283492,5.53263197,2643.7,2643.6,0.34059]
[1729637283696,5.53263197,2643.7,2643.6,1.70059]
[1729637283899,6.15463197,2643.7,2643.6,1.70059]
[1729637284294,1.1868,2643.7,2643.6,1.70059]
[1729637284697,1.1868,2643.7,2643.6,1.36]
[1729637284899,1.1868,2643.7,2643.6,1.70059]
[1729637285997,3.2078,2643.8,2643.7,0.34058]
[1729637286193,3.8298,2643.8,2643.7,1.70058]
[1729637286803,8.79763197,2643.8,2643.7,1.70058]
[1729637287300,5.51003197,2643.9,2643.7,1.36]
[1729637287496,5.51003197,2643.9,2643.5,5.7127]
[1729637287497,4.96783197,2644.2,2643.8,5.48297]
[1729637287698,4.96783197,2644.2,2644.1,1.70053]
[1729637287902,8.17563197,2644.4,2644.2,0.34051]
[1729637288203,0.622,2644.3,2644.2,0.34051]
[1729637288391,0.622,2644.3,2644.2,1.70051]
[1729637292106,0.622,2644.3,2644.2,1.36]
[1729637292603,0.622,2644.3,2644.2,1.70052]
[1729637292798,0.622,2644.3,2644.2,1.36]
[1729637293195,0.622,2644.3,2643.6,0.85148]
[1729637293501,3.2078,2644.4,2643.6,0.85148]
[1729637293502,0.622,2644.0,2643.9,0.34055]
[1729637294403,1.982,2644.0,2643.7,0.34057]
[1729637294594,0.34053,2644.1,2643.9,1.36]
[1729637294802,0.34053,2644.1,2644.0,1.36]
[1729637295007,1.36,2644.2,2644.0,1.36]
[1729637295008,0.34052,2644.2,2644.0,1.36]
[1729637295200,0.622,2644.1,2643.8,0.34057]
[1729637295503,0.622,2643.9,2643.7,0.34057]
[1729637295705,1.36,2644.3,2643.7,0.34057]
[1729637295913,0.34052,2644.2,2644.1,1.36]
[1729637296111,0.96252,2644.2,2644.1,1.36]
[1729637297000,0.96252,2644.2,2643.5,4.5678]
[1729637297001,0.34054,2644.1,2644.0,1.36]
[1729637297404,0.96254,2644.1,2644.0,1.36]
[1729637297804,0.622,2644.1,2644.0,1.36]
[1729637298709,0.622,2644.1,2644.0,1.70054]
[1729637310214,0.622,2644.1,2643.7,5.2981]
[1729637310215,1.982,2644.1,2643.7,1.31957]
[1729637310413,4.90833,2644.1,2644.0,1.36]
[1729637310712,5.53033,2644.1,2644.0,1.36]
[1729637311113,0.96253,2644.1,2644.0,1.36]
[1729637311313,0.622,2644.1,2644.0,1.70054]
[1729637311719,3.2078,2644.4,2644.0,5.1424]
[1729637311908,3.2078,2644.4,2644.3,3.0605]
[1729637312313,3.8298,2644.4,2644.3,1.7005]
[1729637313116,3.8298,2644.4,2644.3,3.0605]
[1729637313117,3.2078,2644.4,2644.3,3.0605]
[1729637313316,3.8298,2644.4,2644.3,3.0605]
[1729637313818,0.622,2644.4,2644.3,3.0605]
[1729637316316,0.5495,2644.6,2644.5,0.34048]
[1729637316522,1.1715,2644.6,2644.5,1.70048]
[1729637318019,0.622,2644.6,2644.5,1.70048]
[1729637320322,0.622,2644.6,2644.5,1.36]
[1729637321328,1.1489,2644.6,2644.5,1.36]
[1729637321527,1.7156,2644.6,2644.5,1.36]
[1729637328131,1.7156,2644.6,2644.5,1.70048]
[1729637330134,0.622,2644.6,2644.5,1.70048]
[1729637332935,0.622,2644.6,2644.5,1.36]
[1729637333232,0.622,2644.6,2644.5,1.70048]
[1729637341232,4.93868639,2645.1,2644.9,0.34042]
[1729637341434,6.07708639,2645.1,2645.0,1.36]
[1729637341741,6.07708639,2645.1,2645.0,1.70041]
[1729637342037,6.69908639,2645.1,2645.0,1.70041]
[1729637342244,6.69908639,2645.1,2645.0,3.06041]
[1729637343138,4.93868639,2645.1,2645.0,0.34041]
[1729637343341,4.93868639,2645.1,2645.0,6.84121]
[1729637343530,4.93868639,2645.1,2645.0,7.34061]
[1729637343735,1.0856,2645.5,2645.0,7.0002]
[1729637343935,1.0856,2645.5,2645.4,1.36]
[1729637344241,1.7076,2645.5,2645.4,1.70036]
[1729637344437,1.7076,2645.5,2645.4,1.36]
[1729637344638,1.7076,2645.5,2645.4,1.70036]
[1729637345035,1.7076,2645.5,2645.4,2.18516]
[1729637348047,1.7076,2645.5,2645.4,1.70036]
[1729637349442,1.7076,2645.5,2645.4,1.36]
[1729637353842,4.9154,2645.5,2645.4,1.36]
[1729637354258,4.9154,2645.5,2645.1,1.021]
[1729637354451,0.622,2645.2,2645.1,2.72139]
[1729637355053,0.622,2645.2,2645.1,4.08139]
[1729637355754,0.622,2645.2,2645.1,3.06039]
[1729637356258,0.622,2645.2,2645.1,3.56909]
[1729637357250,0.622,2645.2,2645.1,6.77689]
[1729637361655,0.622,2645.2,2645.1,3.56909]
[1729637362662,0.622,2645.2,2645.1,0.34039]
[1729637362962,0.622,2645.2,2645.1,1.70039]
[1729637363161,0.622,2645.2,2645.1,3.06039]
[1729637363662,1.982,2645.2,2644.7,3.6876]
[1729637363859,3.2078,2645.4,2644.7,3.2078]
[1729637363860,1.982,2644.8,2644.7,3.2078]
[1729637364159,0.622,2644.8,2644.7,4.5678]
[1729637365061,0.622,2644.8,2644.7,4.90825]
[1729637365763,0.622,2644.8,2644.7,4.5678]
[1729637367363,0.622,2644.8,2644.7,4.90825]
[1729637367557,0.622,2644.8,2644.7,4.5678]
[1729637368259,0.622,2644.8,2644.7,4.90825]
[1729637368661,0.622,2644.8,2644.7,4.5678]
[1729637369068,2.32244,2644.8,2644.6,1.36]
[1729637369261,1.3999,2644.7,2644.6,1.36]
[1729637369461,2.0219,2644.7,2644.6,1.70046]
[1729637370060,1.544,2644.7,2644.6,1.70046]
[1729637370467,1.36,2645.4,2644.6,5.1416]
[1729637370660,1.544,2645.0,2644.9,0.34043]
[1729637371070,1.544,2645.0,2644.7,3.6803]
[1729637371268,0.622,2644.8,2644.7,4.02075]
[1729637372166,0.622,2644.8,2644.7,5.38075]
[1729637372669,0.4779,2645.2,2644.7,9.16155]
[1729637372867,0.4779,2645.2,2645.1,1.7004]
[1729637373268,1.0999,2645.2,2645.1,1.7004]
[1729637376576,4.95190451,2645.6,2645.1,6.5008]
[1729637376770,1.4083,2645.6,2645.5,1.70035]
[1729637377073,2.0303,2645.6,2645.5,1.70035]
[1729637379385,5.2381,2645.6,2645.5,1.70035]
[1729637381778,2.0303,2645.6,2645.5,1.70035]
[1729637384277,0.622,2645.6,2645.5,1.70035]
[1729637396999,1.982,2645.6,2645.3,3.2078]
[1729637397291,0.622,2645.4,2645.3,1.36]
[1729637399097,0.622,2645.4,2645.3,1.70037]
[1729637400391,2.0212,2645.4,2645.3,1.70037]
[1729637403102,1.3992,2645.4,2645.3,1.70037]
[1729637403400,2.0212,2645.4,2645.3,1.70037]
[1729637403899,2.0212,2645.4,2644.8,1.70336805]
[1729637403900,0.622,2645.0,2644.8,1.70336805]
[1729637404099,0.622,2645.0,2644.9,1.70043]
[1729637404298,1.09514299,2645.0,2644.9,3.06043]
[1729637404495,1.09514299,2645.0,2644.8,1.70336805]
[1729637404703,1.09514299,2645.0,2644.9,0.34043]
[1729637404902,0.47314299,2644.9,2644.7,0.993]
[1729637405105,0.47314299,2644.9,2644.8,3.06044]
[1729637405303,0.47314299,2644.9,2644.8,6.84124]
[1729637405497,3.2078,2645.3,2644.7,0.60444014]
[1729637405803,4.4028,2645.0,2644.7,0.60444014]
[1729637405997,4.4028,2645.0,2644.6,0.85116]
[1729637405998,4.4028,2645.0,2644.9,3.06043]
[1729637406905,4.4028,2645.0,2644.9,1.70043]
[1729637407696,7.6106,2645.0,2644.9,1.70043]
[1729637407900,7.6106,2645.0,2644.9,0.34043]
[1729637408100,7.6106,2645.0,2644.9,1.36]
[1729637409005,8.9706,2645.0,2644.3,1.36]
[1729637409201,5.7628,2644.4,2643.7,0.46992057]
[1729637409500,7.6106,2644.0,2643.9,0.34055]
[1729637410604,7.6106,2644.0,2643.9,1.70055]
[1729637412002,7.6106,2644.0,2643.8,0.34056]
[1729637412200,4.4028,2643.9,2643.8,0.34056]
[1729637413407,4.4028,2643.9,2643.8,1.70056]
[1729637414006,4.8649,2643.9,2643.8,1.70056]
[1729637415601,4.8649,2643.9,2643.8,1.36]
[1729637416601,4.8649,2643.9,2643.8,1.70057]
[1729637416807,4.8649,2643.9,2643.8,1.36]
[1729637419510,4.8649,2643.9,2643.8,1.70057]
[1729637419807,4.8649,2643.9,2643.8,1.36]
[1729637419808,6.2249,2643.9,2643.8,1.36]
[1729637420812,6.56546,2643.9,2643.6,1.36]
[1729637421008,4.5678,2643.7,2643.6,1.36]
[1729637421309,8.9706,2643.7,2643.5,1.36]
[1729637421502,0.909,2643.6,2643.5,1.36]
[1729637421706,5.3118,2643.6,2643.5,1.36]
[1729637422915,5.3118,2643.6,2643.5,1.70061]
[1729637423306,8.5196,2643.6,2643.5,1.70061]
[1729637423714,9.8796,2643.6,2643.4,1.36]
[1729637423912,1.8042,2643.5,2643.4,1.36]
[1729637424211,6.207,2643.5,2643.4,1.36]
[1729637424417,4.847,2643.5,2643.4,1.36]
[1729637424815,6.207,2643.5,2643.0,3.2078]
[1729637425121,4.4028,2643.1,2643.0,1.36]
[1729637425320,5.7628,2643.1,2643.0,1.36]
[1729637425520,7.0932,2643.1,2642.9,1.36]
[1729637425820,5.7628,2643.0,2642.9,1.36]
[1729637426117,4.4028,2643.0,2642.9,1.36]
[1729637426304,4.4028,2643.0,2642.8,0.34069]
[1729637426305,5.7628,2643.0,2642.8,0.34069]
[1729637426508,8.9706,2642.9,2642.6,1.70071]
[1729637426814,4.4028,2642.4,2642.3,1.78596]
[1729637427011,3.2078,2642.9,2642.3,1.78596]
[1729637427012,4.4028,2642.6,2642.3,1.78596]
[1729637427205,3.2078,2642.9,2642.3,1.78596]
[1729637427409,4.4028,2642.8,2642.7,0.34071]
[1729637428014,4.4028,2642.8,2642.7,1.70071]
[1729637428719,4.4028,2642.8,2642.7,3.06071]
[1729637428909,3.2078,2643.0,2642.7,3.06071]
[1729637428910,3.2078,2643.0,2642.9,0.34068]
[1729637429111,3.2078,2643.0,2642.9,1.70068]
[1729637429521,3.2078,2643.0,2642.9,2.15858]
[1729637429710,7.6106,2643.0,2642.9,2.15858]
[1729637433116,3.2078,2643.0,2642.9,2.15858]
[1729637433312,7.6106,2643.0,2642.9,2.15858]
[1729637433516,3.2078,2643.0,2642.9,2.15858]
[1729637434019,3.2078,2643.3,2642.9,1.8179]
[1729637434213,4.4028,2643.1,2643.0,0.34067]
[1729637435421,4.4028,2643.1,2643.0,1.70067]
[1729637439918,4.4028,2643.1,2643.0,0.34067]
[1729637440118,4.4028,2643.1,2643.0,1.70067]
[1729637444331,7.6106,2643.1,2643.0,1.70067]
[1729637447736,4.4028,2643.1,2643.0,1.70067]
[1729637449030,7.6106,2643.1,2643.0,1.70067]
[1729637450431,4.4028,2643.1,2643.0,1.70067]
[1729637450830,7.6106,2643.1,2643.0,1.70067]
[1729637451333,4.4028,2643.1,2643.0,1.70067]
[1729637451532,7.6106,2643.1,2643.0,1.70067]
[1729637454235,8.9706,2643.1,2642.1,4.24163155]
[1729637454436,1.36,2643.6,2642.3,0.34076]
[1729637454437,4.4028,2642.4,2642.3,0.34076]
[1729637456234,4.4028,2642.4,2642.3,1.70076]
[1729637462349,4.4028,2642.4,2642.3,0.34076]
[1729637462556,4.4028,2642.4,2642.3,1.70076]
[1729637465149,4.4028,2642.4,2641.9,5.04619913]
[1729637465150,5.7628,2642.4,2641.7,0.85207]
[1729637465350,3.2078,2642.4,2642.3,1.70076]
[1729637465556,0.4343,2642.5,2642.4,0.34075]
[1729637465751,0.4343,2642.5,2642.4,1.70075]
[1729637465954,4.8371,2642.5,2642.4,1.70075]
[1729637468058,8.0449,2642.5,2642.4,1.70075]
[1729637472465,8.0449,2642.5,2642.4,0.34075]
[1729637472762,8.0449,2642.5,2642.4,1.70075]
[1729637474659,0.9257,2642.6,2642.4,1.36]
[1729637474857,8.15970451,2643.0,2642.9,0.34068]
[1729637475058,8.15970451,2643.0,2642.9,1.70068]
[1729637475460,12.56250451,2643.0,2642.9,1.70068]
[1729637475662,8.15970451,2643.0,2642.9,1.70068]
[1729637477167,13.92250451,2643.0,2642.5,0.4231]
[1729637477363,13.92250451,2643.0,2642.8,1.70069]
[1729637477364,0.8758,2642.9,2642.8,1.70069]
[1729637477761,5.2786,2642.9,2642.8,1.70069]
[1729637482368,3.2078,2643.0,2642.9,0.34068]
[1729637482563,3.2078,2643.0,2642.9,2.13348]
[1729637483867,0.4678,2643.4,2642.9,2.13348]
[1729637483868,0.4678,2643.4,2643.3,0.34063]
[1729637484066,4.8706,2643.4,2643.3,1.70063]
[1729637490371,0.4251,2643.5,2643.4,0.34062]
[1729637490567,0.4251,2643.5,2643.4,1.70062]
[1729637492980,0.4251,2643.5,2643.4,3.06062]
[1729637493275,3.2078,2643.6,2643.5,0.34061]
[1729637493467,3.2078,2643.6,2643.5,1.70061]
[1729637496371,3.6395,2643.9,2643.8,0.34057]
[1729637496579,8.0423,2643.9,2643.8,1.70057]
[1729637502184,4.8345,2643.9,2643.8,1.70057]
[1729637512889,4.4028,2643.9,2643.8,1.70057]
[1729637517994,0.8935,2644.1,2644.0,0.34054]
[1729637518304,0.8935,2644.1,2644.0,1.70054]
[1729637518490,3.6532,2644.2,2644.0,1.70054]
[1729637518491,3.2078,2644.6,2644.0,2.72]
[1729637518685,4.4028,2644.5,2644.4,0.34049]
[1729637518890,0.8831,2644.6,2644.4,2.338]
[1729637518891,5.2859,2644.6,2644.4,2.338]
[1729637519186,5.2859,2644.6,2644.5,1.70048]
[1729637521789,8.4937,2644.6,2644.5,1.70048]
[1729637523493,5.2859,2644.6,2644.5,1.70048]
[1729637525998,6.6459,2644.6,2644.4,1.36]
[1729637526193,7.6106,2644.5,2644.4,1.36]
[1729637526700,0.34049,2644.4,2644.3,1.36]
[1729637527001,0.34051,2644.3,2644.1,1.36]
[1729637527212,0.34051,2644.3,2643.9,0.977]
[1729637527213,4.4028,2644.0,2643.9,0.977]
[1729637527500,4.4028,2644.0,2643.9,2.67755]
[1729637527893,4.4028,2644.0,2643.9,1.36]
[1729637528089,4.4028,2644.0,2643.9,1.70055]
[1729637528297,4.4028,2644.0,2643.9,1.36]
[1729637530096,4.8394,2644.0,2643.9,1.36]
[1729637530291,4.8394,2644.0,2643.8,1.36]
[1729637530292,0.34055,2643.9,2643.8,1.36]
[1729637530497,4.5678,2643.9,2643.8,1.36]
[1729637530698,8.9706,2643.9,2643.8,1.36]
[1729637531099,7.6106,2643.9,2643.8,1.36]
[1729637531702,8.9706,2643.9,2643.8,1.36]
[1729637531905,8.9706,2643.9,2643.7,1.36]
[1729637532214,3.54836,2643.9,2643.7,1.36]
[1729637532498,6.2002,2643.8,2643.7,1.36]
[1729637532704,4.8402,2643.8,2643.7,1.36]
[1729637532896,6.2002,2643.8,2643.7,1.36]
[1729637534014,4.8402,2643.8,2643.7,1.36]
[1729637534701,4.8402,2643.8,2643.7,1.70058]
[1729637535402,4.8402,2643.8,2643.3,1.82857]
[1729637535606,0.4374,2643.8,2643.7,1.70058]
[1729637535801,3.6452,2643.8,2643.7,1.70058]
[1729637536108,8.048,2643.8,2643.7,1.70058]
[1729637542508,4.8402,2643.8,2643.7,1.70058]
[1729637542712,8.048,2643.8,2643.7,1.70058]
[1729637548213,4.8402,2643.8,2643.7,1.70058]
[1729637549115,8.048,2643.8,2643.7,1.70058]
[1729637551417,4.8402,2643.8,2643.7,1.70058]
[1729637551719,8.048,2643.8,2643.7,1.70058]
[1729637552218,4.8402,2643.8,2643.7,1.70058]
[1729637552418,8.048,2643.8,2643.7,1.70058]
[1729637555611,4.8402,2643.8,2643.7,1.70058]
[1729637556015,8.048,2643.8,2643.7,1.70058]
[1729637557516,4.8402,2643.8,2643.7,1.70058]
[1729637557710,8.048,2643.8,2643.7,1.70058]
[1729637559118,7.6106,2643.8,2643.7,1.70058]
[1729637562321,4.4028,2643.8,2643.7,1.70058]
[1729637562524,7.6106,2643.8,2643.7,1.70058]
[1729637565827,4.4028,2643.8,2643.7,1.70058]
[1729637566329,7.6106,2643.8,2643.7,1.70058]
[1729637568119,8.9706,2643.8,2643.4,1.1986]
[1729637568323,7.6106,2643.5,2643.4,1.70062]
[1729637568734,8.2258,2643.5,2643.4,1.70062]
[1729637570524,8.2258,2643.5,2643.4,1.36]
[1729637571325,8.2258,2643.5,2643.4,1.70062]
[1729637572835,8.2258,2643.5,2643.4,1.36]
[1729637573538,8.2258,2643.5,2643.4,1.70062]
[1729637573733,8.2258,2643.5,2643.4,1.36]
[1729637575237,8.2258,2643.5,2643.4,1.70062]
[1729637579537,5.018,2643.5,2643.4,1.70062]
[1729637580033,8.2258,2643.5,2643.4,1.70062]
[1729637580929,5.018,2643.5,2643.4,1.70062]
[1729637581135,8.2258,2643.5,2643.4,1.70062]
[1729637582739,7.6106,2643.5,2643.4,3.06062]
[1729637586638,4.4028,2643.5,2643.4,3.06062]
[1729637588746,4.4028,2643.5,2643.4,1.70062]
[1729637592532,5.7628,2643.5,2643.3,0.5974]
[1729637592731,3.2078,2643.7,2643.3,0.93803]
[1729637592732,8.22,2643.4,2643.3,0.93803]
[1729637592931,8.7912,2643.4,2643.3,2.29803]
[1729637596442,8.7912,2643.4,2643.3,1.70063]
[1729637600339,5.5834,2643.4,2643.3,1.70063]
[1729637600543,8.7912,2643.4,2643.3,1.70063]
[1729637604851,5.5834,2643.4,2643.3,1.70063]
[1729637605051,8.7912,2643.4,2643.3,1.70063]
[1729637605543,5.5834,2643.4,2643.3,1.70063]
[1729637605749,8.7912,2643.4,2643.3,1.70063]
[1729637606351,8.7912,2643.4,2643.3,1.36]
[1729637606747,9.3861,2643.4,2643.3,1.36]
[1729637607051,9.3861,2643.4,2643.3,1.70063]
[1729637607545,10.7461,2643.4,2643.1,0.34066]
[1729637607741,6.3433,2643.4,2643.3,1.36]
[1729637607942,4.4028,2643.1,2643.0,0.92837]
[1729637608143,4.4028,2643.1,2643.0,2.28837]
[1729637616550,4.9902,2643.1,2643.0,2.28837]